[Event "Late-Titled-Tuesday-Blitz-September-19-2023"]
[Site "Chess.com"]
[Date "2023.09.19"]
[Round "8"]
[White "Botvinnak"]
[Black "szachmistrz2500"]
[Result "1-0"]
[WhiteElo "2339"]
[BlackElo "2476"]
[TimeControl "180+1"]
[EndTime "15:23:44 PDT"]
[Termination "Botvinnak won by resignation"]

1. b3 {[%clk 0:03:00.9]} 1... Nf6 {[%clk 0:02:58.2]} 2. Bb2 {[%clk 0:02:58.1]}
2... d6 {[%clk 0:02:57.2]} 3. e3 {[%clk 0:02:58.5]} 3... Nbd7 {[%clk 0:02:55.6]}
4. Nf3 {[%clk 0:02:58.2]} 4... g6 {[%clk 0:02:56]} 5. c4 {[%clk 0:02:58.4]} 5...
Bg7 {[%clk 0:02:56.5]} 6. Be2 {[%clk 0:02:59]} 6... O-O {[%clk 0:02:56.8]} 7.
O-O {[%clk 0:02:59.7]} 7... e5 {[%clk 0:02:57.2]} 8. d3 {[%clk 0:02:59.8]} 8...
c6 {[%clk 0:02:57]} 9. Qc2 {[%clk 0:03:00.3]} 9... Qe7 {[%clk 0:02:57.3]} 10.
Nbd2 {[%clk 0:02:59.7]} 10... Re8 {[%clk 0:02:45.5]} 11. a3 {[%clk 0:03:00]}
11... Nf8 {[%clk 0:02:43.4]} 12. b4 {[%clk 0:03:00.2]} 12... h5 {[%clk
0:02:36.8]} 13. Rfd1 {[%clk 0:03:00.3]} 13... N8h7 {[%clk 0:02:36.6]} 14. b5
{[%clk 0:02:58.4]} 14... c5 {[%clk 0:02:35.4]} 15. Ne4 {[%clk 0:02:55.6]} 15...
b6 {[%clk 0:02:28.1]} 16. Nc3 {[%clk 0:02:53.6]} 16... Bb7 {[%clk 0:02:27.8]}
17. e4 {[%clk 0:02:54.2]} 17... Nd7 {[%clk 0:02:18.4]} 18. a4 {[%clk 0:02:52.8]}
18... Rf8 {[%clk 0:02:16.5]} 19. a5 {[%clk 0:02:52.7]} 19... f5 {[%clk
0:02:16.3]} 20. a6 {[%clk 0:02:52.3]} 20... Bc8 {[%clk 0:02:15.8]} 21. Nd5
{[%clk 0:02:52.7]} 21... Qd8 {[%clk 0:02:15.9]} 22. exf5 {[%clk 0:02:52.6]}
22... gxf5 {[%clk 0:02:13.5]} 23. Nd2 {[%clk 0:02:47]} 23... Ndf6 {[%clk
0:02:12.6]} 24. Bf3 {[%clk 0:02:46.2]} 24... Rb8 {[%clk 0:02:09.4]} 25. Re1
{[%clk 0:02:42.2]} 25... Be6 {[%clk 0:02:07.2]} 26. Nf1 {[%clk 0:02:41.7]} 26...
Bxd5 {[%clk 0:02:04.6]} 27. cxd5 {[%clk 0:02:41.9]} 27... Ng5 {[%clk 0:02:03.4]}
28. Qe2 {[%clk 0:02:41]} 28... Qe8 {[%clk 0:01:57.7]} 29. Ne3 {[%clk 0:02:40.5]}
29... Qg6 {[%clk 0:01:50.7]} 30. Nc4 {[%clk 0:02:39.5]} 30... Nh3+ {[%clk
0:01:46.9]} 31. Kh1 {[%clk 0:02:38.5]} 31... Nf4 {[%clk 0:01:47.1]} 32. Qf1
{[%clk 0:02:38.9]} 32... N6xd5 {[%clk 0:01:45.4]} 33. g3 {[%clk 0:02:36.8]}
33... e4 {[%clk 0:01:41.3]} 34. dxe4 {[%clk 0:02:36]} 34... Bxb2 {[%clk
0:01:30]} 35. Nxb2 {[%clk 0:02:36.3]} 35... Nb4 {[%clk 0:01:28.3]} 36. gxf4
{[%clk 0:02:32.2]} 36... Nc2 {[%clk 0:01:28.5]} 37. Qc4+ {[%clk 0:02:31.8]} 1-0

[Event "Late-Titled-Tuesday-Blitz-September-19-2023"]
[Site "Chess.com"]
[Date "2023.09.19"]
[Round "8"]
[White "Abund"]
[Black "stolencandy13"]
[Result "1-0"]
[WhiteElo "2774"]
[BlackElo "2570"]
[TimeControl "180+1"]
[EndTime "15:23:49 PDT"]
[Termination "Abund won by resignation"]

1. e4 {[%clk 0:03:00.9]} 1... c6 {[%clk 0:03:00.4]} 2. d4 {[%clk 0:03:00.9]}
2... d5 {[%clk 0:03:01.3]} 3. exd5 {[%clk 0:03:01.8]} 3... c5 {[%clk 0:03:02.1]}
4. dxc5 {[%clk 0:02:49.6]} 4... Nf6 {[%clk 0:03:01.3]} 5. Nc3 {[%clk 0:02:47.4]}
5... Nbd7 {[%clk 0:02:57]} 6. Be3 {[%clk 0:02:45]} 6... g6 {[%clk 0:02:55.8]} 7.
Nf3 {[%clk 0:02:40.1]} 7... Bg7 {[%clk 0:02:55.9]} 8. Bc4 {[%clk 0:02:35]} 8...
O-O {[%clk 0:02:55.7]} 9. O-O {[%clk 0:02:33.9]} 9... Nxc5 {[%clk 0:02:28.7]}
10. Bxc5 {[%clk 0:02:30.5]} 10... Qc7 {[%clk 0:02:29.2]} 11. b4 {[%clk
0:02:11.5]} 11... b6 {[%clk 0:02:12.9]} 12. Nb5 {[%clk 0:02:02]} 12... Qf4
{[%clk 0:02:08.4]} 13. Bd4 {[%clk 0:01:58.6]} 13... Bg4 {[%clk 0:02:04.3]} 14.
h3 {[%clk 0:01:53.8]} 14... Bxf3 {[%clk 0:02:01.8]} 15. Qxf3 {[%clk 0:01:54.7]}
15... Qg5 {[%clk 0:01:56.7]} 16. Rad1 {[%clk 0:01:49.5]} 16... Rac8 {[%clk
0:01:54.4]} 17. Bb3 {[%clk 0:01:46.3]} 17... h5 {[%clk 0:01:48.9]} 18. Nxa7
{[%clk 0:01:45.7]} 18... Rcd8 {[%clk 0:01:48]} 19. Nc6 {[%clk 0:01:45.7]} 19...
Rd7 {[%clk 0:01:48.4]} 20. Rfe1 {[%clk 0:01:41.6]} 20... Re8 {[%clk 0:01:45]}
21. Bxb6 {[%clk 0:01:37.5]} 21... h4 {[%clk 0:01:44.3]} 22. Be3 {[%clk
0:01:36.1]} 1-0

[Event "Late-Titled-Tuesday-Blitz-September-19-2023"]
[Site "Chess.com"]
[Date "2023.09.19"]
[Round "8"]
[White "GlavkonVVS"]
[Black "whiteglovethief"]
[Result "1-0"]
[WhiteElo "2611"]
[BlackElo "2516"]
[TimeControl "180+1"]
[EndTime "15:25:12 PDT"]
[Termination "GlavkonVVS won by resignation"]

1. c4 {[%clk 0:03:00.9]} 1... g6 {[%clk 0:02:56.6]} 2. Nc3 {[%clk 0:03:00.7]}
2... Bg7 {[%clk 0:02:57]} 3. Nf3 {[%clk 0:03:01.4]} 3... c5 {[%clk 0:02:57.3]}
4. g3 {[%clk 0:03:00.3]} 4... Nc6 {[%clk 0:02:57.3]} 5. Bg2 {[%clk 0:03:00.9]}
5... Nf6 {[%clk 0:02:54.3]} 6. d3 {[%clk 0:03:01.2]} 6... O-O {[%clk 0:02:54]}
7. a3 {[%clk 0:03:01.9]} 7... d6 {[%clk 0:02:48.8]} 8. Rb1 {[%clk 0:03:01.7]}
8... a6 {[%clk 0:02:47.1]} 9. b4 {[%clk 0:03:01.7]} 9... Rb8 {[%clk 0:02:44.9]}
10. bxc5 {[%clk 0:03:00.8]} 10... dxc5 {[%clk 0:02:44.5]} 11. O-O {[%clk
0:02:56.3]} 11... Nd4 {[%clk 0:02:39]} 12. Bf4 {[%clk 0:02:49.8]} 12... Ra8
{[%clk 0:02:31.8]} 13. Na4 {[%clk 0:02:44.8]} 13... Ne6 {[%clk 0:02:29.4]} 14.
Be3 {[%clk 0:02:30.8]} 14... Nd7 {[%clk 0:02:26.1]} 15. Ng5 {[%clk 0:02:26.9]}
15... Nxg5 {[%clk 0:02:23.4]} 16. Bxg5 {[%clk 0:02:26.9]} 16... Rb8 {[%clk
0:02:19.6]} 17. Qc1 {[%clk 0:02:11.9]} 17... f6 {[%clk 0:02:11.7]} 18. Be3
{[%clk 0:02:04.7]} 18... Qc7 {[%clk 0:02:11.7]} 19. Nc3 {[%clk 0:02:02.4]} 19...
e6 {[%clk 0:02:09.4]} 20. Bf4 {[%clk 0:02:02.3]} 20... e5 {[%clk 0:02:08.2]} 21.
Nd5 {[%clk 0:02:01.6]} 21... Qd6 {[%clk 0:02:06.7]} 22. Bd2 {[%clk 0:01:46.8]}
22... b5 {[%clk 0:01:59.5]} 23. Ba5 {[%clk 0:01:38.8]} 23... bxc4 {[%clk
0:01:57.6]} 24. Rxb8 {[%clk 0:01:23.6]} 24... Qxb8 {[%clk 0:01:56.5]} 25. Qxc4
{[%clk 0:01:21.4]} 25... Kh8 {[%clk 0:01:54.8]} 26. Bc7 {[%clk 0:01:14.4]} 26...
Qa7 {[%clk 0:01:51]} 27. Rb1 {[%clk 0:01:11.8]} 27... Bb7 {[%clk 0:01:44.2]} 28.
Bd6 {[%clk 0:01:10.5]} 28... Bxd5 {[%clk 0:01:34.7]} 29. Qxd5 {[%clk 0:01:07.7]}
29... Rd8 {[%clk 0:01:25.6]} 30. Rb7 {[%clk 0:01:02.4]} 30... Nb6 {[%clk
0:01:19]} 31. Qf7 {[%clk 0:01:00.3]} 1-0

[Event "Late-Titled-Tuesday-Blitz-September-19-2023"]
[Site "Chess.com"]
[Date "2023.09.19"]
[Round "8"]
[White "ukchessbomber"]
[Black "Parhamov"]
[Result "0-1"]
[WhiteElo "2702"]
[BlackElo "3022"]
[TimeControl "180+1"]
[EndTime "15:25:17 PDT"]
[Termination "Parhamov won on time"]

1. b4 {[%clk 0:03:00.9]} 1... a6 {[%clk 0:02:59.5]} 2. Bb2 {[%clk 0:02:59.5]}
2... h6 {[%clk 0:02:57.5]} 3. e4 {[%clk 0:02:54.9]} 3... d6 {[%clk 0:02:56.4]}
4. Nf3 {[%clk 0:02:53.7]} 4... Nc6 {[%clk 0:02:56.2]} 5. a3 {[%clk 0:02:53.4]}
5... Nf6 {[%clk 0:02:54.4]} 6. d3 {[%clk 0:02:52.6]} 6... g6 {[%clk 0:02:49]} 7.
Nbd2 {[%clk 0:02:49.6]} 7... Bg7 {[%clk 0:02:48.7]} 8. g3 {[%clk 0:02:48.6]}
8... O-O {[%clk 0:02:45.6]} 9. Bg2 {[%clk 0:02:46.1]} 9... e5 {[%clk 0:02:41.1]}
10. O-O {[%clk 0:02:46.1]} 10... Nh5 {[%clk 0:02:37.4]} 11. Nc4 {[%clk
0:02:39.1]} 11... f5 {[%clk 0:02:36]} 12. Nh4 {[%clk 0:02:21.9]} 12... Nf4
{[%clk 0:02:35.4]} 13. exf5 {[%clk 0:01:55.4]} 13... gxf5 {[%clk 0:02:32.3]} 14.
Ne3 {[%clk 0:01:43.6]} 14... Nxg2 {[%clk 0:02:29.9]} 15. Nexg2 {[%clk
0:01:35.1]} 15... f4 {[%clk 0:02:27.3]} 16. gxf4 {[%clk 0:01:32.7]} 16... exf4
{[%clk 0:02:21.4]} 17. Bxg7 {[%clk 0:01:32.1]} 17... Kxg7 {[%clk 0:02:21.6]} 18.
Qh5 {[%clk 0:01:28.7]} 18... Qg5 {[%clk 0:02:20.4]} 19. Qxg5+ {[%clk 0:01:07.6]}
19... hxg5 {[%clk 0:02:20.5]} 20. Nf3 {[%clk 0:01:08.5]} 20... g4 {[%clk
0:02:19.6]} 21. Ng5 {[%clk 0:01:08.7]} 21... Nd4 {[%clk 0:02:14.5]} 22. Ne1
{[%clk 0:00:10.3]} 22... d5 {[%clk 0:02:05.5]} 23. c3 {[%clk 0:00:08.6]} 23...
Ne2+ {[%clk 0:02:05.1]} 24. Kh1 {[%clk 0:00:07.6]} 24... f3 {[%clk 0:02:04.1]}
25. Nc2 {[%clk 0:00:05.9]} 25... Rh8 {[%clk 0:02:02.9]} 26. Ne3 {[%clk 0:00:04]}
26... Bd7 {[%clk 0:02:02.6]} 27. Nxd5 {[%clk 0:00:01.4]} 27... Rxh2+ {[%clk
0:02:01.5]} 28. Kxh2 {[%clk 0:00:01.2]} 28... Rh8+ {[%clk 0:02:01.7]} 0-1

[Event "Late-Titled-Tuesday-Blitz-September-19-2023"]
[Site "Chess.com"]
[Date "2023.09.19"]
[Round "8"]
[White "Nekoo04"]
[Black "Road2GM3000"]
[Result "0-1"]
[WhiteElo "2338"]
[BlackElo "2491"]
[TimeControl "180+1"]
[EndTime "15:25:18 PDT"]
[Termination "Road2GM3000 won on time"]

1. d4 {[%clk 0:03:00]} 1... d5 {[%clk 0:02:58.2]} 2. c4 {[%clk 0:02:56.3]} 2...
c6 {[%clk 0:02:58]} 3. Nf3 {[%clk 0:02:56.2]} 3... Nf6 {[%clk 0:02:57.7]} 4. g3
{[%clk 0:02:50.1]} 4... Bf5 {[%clk 0:02:54]} 5. Nc3 {[%clk 0:02:47.7]} 5... e6
{[%clk 0:02:53]} 6. Bg2 {[%clk 0:02:47.7]} 6... Nbd7 {[%clk 0:02:52.8]} 7. O-O
{[%clk 0:02:47.5]} 7... Be7 {[%clk 0:02:52.8]} 8. b3 {[%clk 0:02:33.5]} 8... O-O
{[%clk 0:02:52]} 9. Bb2 {[%clk 0:02:33.5]} 9... Ne4 {[%clk 0:02:51.9]} 10. Nd2
{[%clk 0:02:27.7]} 10... Nxd2 {[%clk 0:02:49.7]} 11. Qxd2 {[%clk 0:02:24]} 11...
Nf6 {[%clk 0:02:50.1]} 12. f3 {[%clk 0:02:18.8]} 12... Bb4 {[%clk 0:02:48.1]}
13. Qf4 {[%clk 0:01:39]} 13... Qa5 {[%clk 0:02:18.8]} 14. Rfc1 {[%clk
0:00:45.2]} 14... h6 {[%clk 0:02:04.4]} 15. e4 {[%clk 0:00:42.7]} 15... Bg6
{[%clk 0:02:04.8]} 16. a3 {[%clk 0:00:21.1]} 16... Be7 {[%clk 0:02:04.4]} 17. b4
{[%clk 0:00:15.9]} 17... Qd8 {[%clk 0:02:05.1]} 18. cxd5 {[%clk 0:00:06.2]}
18... exd5 {[%clk 0:02:06]} 19. e5 {[%clk 0:00:06.4]} 19... Nd7 {[%clk
0:02:05.6]} 20. h4 {[%clk 0:00:06.5]} 20... Re8 {[%clk 0:02:04.5]} 21. Re1
{[%clk 0:00:04.4]} 21... Nf8 {[%clk 0:02:05]} 22. Qd2 {[%clk 0:00:02.7]} 22...
Ne6 {[%clk 0:02:05.6]} 23. Ne2 {[%clk 0:00:02.6]} 23... h5 {[%clk 0:02:05.7]}
24. Nf4 {[%clk 0:00:02.5]} 24... Nxf4 {[%clk 0:02:06.4]} 25. Qxf4 {[%clk
0:00:03.4]} 25... Qd7 {[%clk 0:02:04.8]} 26. Kh2 {[%clk 0:00:03.1]} 26... Qf5
{[%clk 0:02:05]} 27. Qe3 {[%clk 0:00:02.1]} 27... Qe6 {[%clk 0:02:05.3]} 28. Bh3
{[%clk 0:00:02.3]} 28... f5 {[%clk 0:02:04.4]} 0-1

[Event "Late-Titled-Tuesday-Blitz-September-19-2023"]
[Site "Chess.com"]
[Date "2023.09.19"]
[Round "8"]
[White "PNEPaul"]
[Black "traack"]
[Result "0-1"]
[WhiteElo "1948"]
[BlackElo "2367"]
[TimeControl "180+1"]
[EndTime "15:25:22 PDT"]
[Termination "traack won by resignation"]

1. e4 {[%clk 0:03:00.9]} 1... c5 {[%clk 0:02:55.7]} 2. Nf3 {[%clk 0:03:00.3]}
2... e6 {[%clk 0:02:55.4]} 3. d4 {[%clk 0:03:00.3]} 3... cxd4 {[%clk 0:02:56.3]}
4. c3 {[%clk 0:03:00.4]} 4... Nf6 {[%clk 0:02:55.2]} 5. Bd3 {[%clk 0:02:59.6]}
5... Nc6 {[%clk 0:02:51.5]} 6. Bf4 {[%clk 0:02:54.4]} 6... dxc3 {[%clk 0:02:45]}
7. Nxc3 {[%clk 0:02:53.8]} 7... Bb4 {[%clk 0:02:42.5]} 8. Qe2 {[%clk 0:02:53.5]}
8... d5 {[%clk 0:02:36.2]} 9. e5 {[%clk 0:02:52.8]} 9... Nd7 {[%clk 0:02:26.7]}
10. a3 {[%clk 0:02:41.1]} 10... Bxc3+ {[%clk 0:02:16]} 11. bxc3 {[%clk
0:02:40.5]} 11... Nc5 {[%clk 0:02:16.9]} 12. Bc2 {[%clk 0:02:33.8]} 12... Qa5
{[%clk 0:02:16.9]} 13. Bd2 {[%clk 0:02:28.7]} 13... Qa6 {[%clk 0:02:07]} 14.
Qxa6 {[%clk 0:02:04.9]} 14... Nxa6 {[%clk 0:02:05.9]} 15. O-O {[%clk 0:02:03.9]}
15... Bd7 {[%clk 0:02:02.9]} 16. Rfe1 {[%clk 0:02:01.9]} 16... Rc8 {[%clk
0:02:01.9]} 17. Rac1 {[%clk 0:01:44.4]} 17... Na5 {[%clk 0:02:01.2]} 18. Nd4
{[%clk 0:01:29.4]} 18... Nc4 {[%clk 0:02:00]} 19. Bf4 {[%clk 0:01:16.6]} 19...
Nxa3 {[%clk 0:01:59]} 20. Bd3 {[%clk 0:01:16.6]} 20... Nc4 {[%clk 0:01:57.1]}
21. Rb1 {[%clk 0:01:09.3]} 21... Rc7 {[%clk 0:01:55]} 22. Nb5 {[%clk 0:01:08.4]}
22... Bxb5 {[%clk 0:01:54.3]} 23. Rxb5 {[%clk 0:01:07.8]} 23... Nc5 {[%clk
0:01:54.1]} 24. Bxc4 {[%clk 0:01:03.6]} 24... dxc4 {[%clk 0:01:53.6]} 25. Be3
{[%clk 0:01:01.6]} 25... Nd3 {[%clk 0:01:49.9]} 26. Reb1 {[%clk 0:01:00.1]}
26... b6 {[%clk 0:01:50.1]} 27. Ra1 {[%clk 0:00:58.2]} 27... O-O {[%clk
0:01:49]} 28. Bd4 {[%clk 0:00:53]} 28... Rd8 {[%clk 0:01:46.7]} 29. g3 {[%clk
0:00:51.4]} 29... h5 {[%clk 0:01:42.5]} 30. Kg2 {[%clk 0:00:49]} 30... Rxd4
{[%clk 0:01:33.5]} 31. cxd4 {[%clk 0:00:43.8]} 31... c3 {[%clk 0:01:34.4]} 0-1

[Event "Late-Titled-Tuesday-Blitz-September-19-2023"]
[Site "Chess.com"]
[Date "2023.09.19"]
[Round "8"]
[White "dropstoneDP"]
[Black "Msb2"]
[Result "1/2-1/2"]
[WhiteElo "3057"]
[BlackElo "3096"]
[TimeControl "180+1"]
[EndTime "15:25:27 PDT"]
[Termination "Game drawn by agreement"]

1. e4 {[%clk 0:03:00.9]} 1... e6 {[%clk 0:03:00.4]} 2. d4 {[%clk 0:02:59.8]}
2... d5 {[%clk 0:03:01.1]} 3. Nd2 {[%clk 0:02:57.7]} 3... c5 {[%clk 0:03:01.6]}
4. Ngf3 {[%clk 0:02:57.7]} 4... Nf6 {[%clk 0:03:01.2]} 5. exd5 {[%clk
0:02:55.1]} 5... Nxd5 {[%clk 0:03:02.1]} 6. Ne4 {[%clk 0:02:47.2]} 6... cxd4
{[%clk 0:03:00.4]} 7. Nxd4 {[%clk 0:02:48.1]} 7... Be7 {[%clk 0:03:00.8]} 8. Bc4
{[%clk 0:02:33.5]} 8... O-O {[%clk 0:03:00]} 9. O-O {[%clk 0:02:32.9]} 9... Nf6
{[%clk 0:03:00.4]} 10. Nxf6+ {[%clk 0:02:29.6]} 10... Bxf6 {[%clk 0:03:01.3]}
11. c3 {[%clk 0:02:29.9]} 11... Bd7 {[%clk 0:03:01.8]} 12. Be3 {[%clk
0:02:20.2]} 12... Nc6 {[%clk 0:03:02]} 13. Nf3 {[%clk 0:02:13.2]} 13... Qc7
{[%clk 0:02:58.4]} 14. Bd3 {[%clk 0:02:10.4]} 14... Rfd8 {[%clk 0:02:58.3]} 15.
Qe2 {[%clk 0:02:09.6]} 15... Ne7 {[%clk 0:02:47.7]} 16. Bd4 {[%clk 0:02:06.7]}
16... Bxd4 {[%clk 0:02:43.8]} 17. Nxd4 {[%clk 0:02:07.6]} 17... Nc6 {[%clk
0:02:39.4]} 18. Nf3 {[%clk 0:02:06.7]} 18... Ne7 {[%clk 0:02:39.1]} 19. Ne5
{[%clk 0:02:03.8]} 19... Be8 {[%clk 0:02:32.1]} 20. Rfe1 {[%clk 0:01:57.1]}
20... Rd5 {[%clk 0:02:21.9]} 21. Nf3 {[%clk 0:01:51.5]} 21... Rad8 {[%clk
0:02:19.8]} 22. Be4 {[%clk 0:01:51.5]} 22... R5d6 {[%clk 0:02:19.2]} 23. Rad1
{[%clk 0:01:49]} 23... Bc6 {[%clk 0:02:18.8]} 24. Rxd6 {[%clk 0:01:44.3]} 24...
Rxd6 {[%clk 0:02:16.6]} 25. Nd4 {[%clk 0:01:43.1]} 25... Bxe4 {[%clk 0:02:10.5]}
26. Qxe4 {[%clk 0:01:44]} 26... Qd7 {[%clk 0:02:10.1]} 27. g3 {[%clk 0:01:25.8]}
27... h6 {[%clk 0:02:08.5]} 28. Kg2 {[%clk 0:01:23.7]} 28... Nc6 {[%clk
0:02:08.6]} 29. Nxc6 {[%clk 0:01:23.4]} 29... Rxc6 {[%clk 0:02:09.5]} 30. Re2
{[%clk 0:01:19.9]} 30... Rd6 {[%clk 0:02:09.4]} 31. h4 {[%clk 0:01:19.7]} 31...
Rd5 {[%clk 0:02:08.4]} 32. Qf3 {[%clk 0:01:18.9]} 32... b5 {[%clk 0:02:07.8]}
33. a3 {[%clk 0:01:18.5]} 33... a6 {[%clk 0:02:08.1]} 34. Qe4 {[%clk 0:01:15.8]}
34... h5 {[%clk 0:02:07.5]} 35. c4 {[%clk 0:01:14.2]} 35... bxc4 {[%clk
0:01:57.6]} 36. Qxc4 {[%clk 0:01:15.1]} 36... a5 {[%clk 0:01:57.6]} 37. Rc2
{[%clk 0:01:09.9]} 37... g6 {[%clk 0:01:56.7]} 38. Qc8+ {[%clk 0:01:08.8]} 38...
Qxc8 {[%clk 0:01:57.1]} 39. Rxc8+ {[%clk 0:01:09.4]} 39... Kg7 {[%clk 0:01:58]}
40. b4 {[%clk 0:01:09]} 40... axb4 {[%clk 0:01:57.2]} 41. axb4 {[%clk
0:01:09.9]} 41... Rd3 {[%clk 0:01:51.8]} 42. b5 {[%clk 0:01:08.9]} 42... Rb3
{[%clk 0:01:52.1]} 43. Rb8 {[%clk 0:01:09.4]} 43... e5 {[%clk 0:01:50.6]} 44. b6
{[%clk 0:01:09.6]} 44... e4 {[%clk 0:01:50.5]} 45. b7 {[%clk 0:01:01.9]} 45...
Rb1 {[%clk 0:01:47]} 46. Re8 {[%clk 0:00:56.9]} 46... Rxb7 {[%clk 0:01:46.5]}
47. Rxe4 {[%clk 0:00:55.3]} 47... Rb6 {[%clk 0:01:46.9]} 48. Re3 {[%clk
0:00:55.4]} 1/2-1/2

[Event "Late-Titled-Tuesday-Blitz-September-19-2023"]
[Site "Chess.com"]
[Date "2023.09.19"]
[Round "8"]
[White "andrzej"]
[Black "SCIM"]
[Result "0-1"]
[WhiteElo "2476"]
[BlackElo "2573"]
[TimeControl "180+1"]
[EndTime "15:25:32 PDT"]
[Termination "SCIM won by checkmate"]

1. e4 {[%clk 0:03:00.9]} 1... c5 {[%clk 0:02:58.6]} 2. Nf3 {[%clk 0:03:00.9]}
2... e6 {[%clk 0:02:58.2]} 3. d4 {[%clk 0:03:01.1]} 3... cxd4 {[%clk 0:02:58.8]}
4. Nxd4 {[%clk 0:03:02]} 4... a6 {[%clk 0:02:59]} 5. h3 {[%clk 0:03:00.5]} 5...
Nc6 {[%clk 0:02:56.2]} 6. Nxc6 {[%clk 0:02:59.4]} 6... bxc6 {[%clk 0:02:54.6]}
7. Bd3 {[%clk 0:02:58.8]} 7... d5 {[%clk 0:02:54.1]} 8. Nd2 {[%clk 0:02:57.3]}
8... Bd6 {[%clk 0:02:53.9]} 9. O-O {[%clk 0:02:51.3]} 9... Ne7 {[%clk
0:02:51.1]} 10. Re1 {[%clk 0:02:50]} 10... e5 {[%clk 0:02:45.4]} 11. Qh5 {[%clk
0:02:11.5]} 11... O-O {[%clk 0:02:25.8]} 12. exd5 {[%clk 0:02:02.5]} 12... g6
{[%clk 0:02:25.4]} 13. Qh6 {[%clk 0:02:02.5]} 13... cxd5 {[%clk 0:02:21.5]} 14.
Nf3 {[%clk 0:01:46.4]} 14... f6 {[%clk 0:02:18.7]} 15. Nh4 {[%clk 0:01:34]}
15... e4 {[%clk 0:02:12]} 16. Bf1 {[%clk 0:01:23.3]} 16... Nf5 {[%clk
0:02:00.1]} 17. Nxf5 {[%clk 0:01:22.6]} 17... Bxf5 {[%clk 0:02:01]} 18. Be3
{[%clk 0:01:12.1]} 18... Be5 {[%clk 0:01:51.7]} 19. c3 {[%clk 0:01:07.3]} 19...
Rb8 {[%clk 0:01:49.5]} 20. Rad1 {[%clk 0:01:02.6]} 20... Rxb2 {[%clk 0:01:44.4]}
21. c4 {[%clk 0:00:48.9]} 21... d4 {[%clk 0:01:39.5]} 22. Bc1 {[%clk 0:00:49.2]}
22... Rxa2 {[%clk 0:01:32.5]} 23. g4 {[%clk 0:00:49.7]} 23... Bc8 {[%clk
0:01:29.1]} 24. Rxe4 {[%clk 0:00:50]} 24... Bb7 {[%clk 0:01:27]} 25. Ree1 {[%clk
0:00:37.2]} 25... Qd6 {[%clk 0:01:24.7]} 26. c5 {[%clk 0:00:18.7]} 26... Bh2#
{[%clk 0:01:23.5]} 0-1

[Event "Late-Titled-Tuesday-Blitz-September-19-2023"]
[Site "Chess.com"]
[Date "2023.09.19"]
[Round "8"]
[White "ilm2034"]
[Black "Eloist"]
[Result "1-0"]
[WhiteElo "2584"]
[BlackElo "2490"]
[TimeControl "180+1"]
[EndTime "15:25:35 PDT"]
[Termination "ilm2034 won by resignation"]

1. e4 {[%clk 0:02:56.5]} 1... e6 {[%clk 0:02:59.8]} 2. d4 {[%clk 0:02:54.9]}
2... d5 {[%clk 0:03:00]} 3. Nd2 {[%clk 0:02:55.6]} 3... c5 {[%clk 0:02:59.2]} 4.
exd5 {[%clk 0:02:54.5]} 4... Qxd5 {[%clk 0:02:58.5]} 5. Ngf3 {[%clk 0:02:55.1]}
5... cxd4 {[%clk 0:02:58.4]} 6. Bc4 {[%clk 0:02:55.8]} 6... Qd6 {[%clk
0:02:57.7]} 7. O-O {[%clk 0:02:56.5]} 7... Nf6 {[%clk 0:02:57]} 8. Nb3 {[%clk
0:02:56.5]} 8... Nc6 {[%clk 0:02:57.2]} 9. Nfxd4 {[%clk 0:02:56.1]} 9... Nxd4
{[%clk 0:02:53.8]} 10. Nxd4 {[%clk 0:02:57]} 10... a6 {[%clk 0:02:52.5]} 11. Re1
{[%clk 0:02:55.1]} 11... Qc7 {[%clk 0:02:49.6]} 12. Bb3 {[%clk 0:02:44]} 12...
Bd6 {[%clk 0:02:43.8]} 13. Bg5 {[%clk 0:02:35.4]} 13... Bxh2+ {[%clk 0:02:28.5]}
14. Kh1 {[%clk 0:02:35.7]} 14... Be5 {[%clk 0:02:03.6]} 15. c3 {[%clk
0:02:32.4]} 15... h6 {[%clk 0:01:57.9]} 16. Be3 {[%clk 0:02:20.3]} 16... O-O
{[%clk 0:01:51.6]} 17. Qf3 {[%clk 0:02:19.1]} 17... Bd7 {[%clk 0:01:36.1]} 18.
Rad1 {[%clk 0:02:10.2]} 18... Rad8 {[%clk 0:01:32.8]} 19. Bc2 {[%clk 0:02:05.3]}
19... Nd5 {[%clk 0:01:22.2]} 20. Bxh6 {[%clk 0:01:55.1]} 20... gxh6 {[%clk
0:01:01]} 21. Qe4 {[%clk 0:01:50.7]} 21... Nf6 {[%clk 0:00:33.1]} 22. Qxe5
{[%clk 0:01:50.5]} 22... Qxe5 {[%clk 0:00:32.8]} 23. Rxe5 {[%clk 0:01:51.4]}
23... Bc8 {[%clk 0:00:25.7]} 24. f3 {[%clk 0:01:49]} 24... Kg7 {[%clk
0:00:22.4]} 25. Kg1 {[%clk 0:01:47.6]} 25... Rd5 {[%clk 0:00:19.9]} 26. Rxd5
{[%clk 0:01:43.7]} 26... Nxd5 {[%clk 0:00:19.4]} 27. Kf2 {[%clk 0:01:44.4]}
27... Rd8 {[%clk 0:00:18.8]} 28. g3 {[%clk 0:01:44.4]} 28... Nf6 {[%clk
0:00:13.7]} 29. Nf5+ {[%clk 0:01:37.3]} 29... exf5 {[%clk 0:00:11.1]} 30. Rxd8
{[%clk 0:01:38]} 1-0